Cogmind - Beta 16 @@@ ROGUE MODE // 2025.12.28 @ 13:46:39 Player: Peregrine Result: Self-destructed Performance ------------- Evolutions (5) 2500 Regions Visited (4) 800 Robots Destroyed (34) 170 Value Destroyed (1097) 1097 Prototype IDs (3) 60 Alien Tech Used (0) 0 Bonus (-635) -635 TOTAL SCORE: 3992 Bonus ------- Follower Combat Kills 95 Registered with UFD 300 Met Optimus in HQ 500 Friendly Fire -1530 Cogmind --------- Core Integrity 763/1000 Matter 277/300 Energy 500/500 System Corruption 17% Temperature Cool (0) Movement Core (500) Ox9 Location -5/Factory Parts ------- > --- POWER (2) -------- F-cell Engine > --- PROPULSION (4) --- (None) > --- UTILITY (8) ------ Advanced Heat Sink Small Storage Unit Surveybot 17 Chip Hacking Suite Mapping Drone Bay (1/3) > --- WEAPON (3) ------- Subdweller Beam Cannon > --- INVENTORY (8) ---- Matter Filter Point Defense System Heavy Battle Rifle Subdweller Shrapnel Launcher Peak State ------------ > --- POWER ------------ Makeshift Power Source F-cell Engine > --- PROPULSION ------- Carbon-fiber Leg Makeshift Leg Makeshift Leg Makeshift Leg > --- UTILITY ---------- Advanced Heat Sink Advanced Heat Sink Small Storage Unit Surveybot 17 Chip Armor Integrity Analyzer Matter Filter Hacking Suite Mapping Drone Bay > --- WEAPON ----------- Gauss Rifle Slug Cannon Antimatter Cannon > --- INVENTORY -------- Subdweller Beam Cannon Heavy Battle Rifle Subdweller Shrapnel Launcher [Rating: 74] Favorites ----------- Power Ion Engine Engine Ion Engine Propulsion Makeshift Leg Leg Makeshift Leg Wheel Subdweller Monowheel Utility Small Storage Unit Device Mapping Drone Bay Storage Small Storage Unit Processor Machine Analyzer Hackware Hacking Suite Weapon Subdweller Beam Cannon Energy Gun Small Laser Energy Cannon Subdweller Beam Cannon Ballistic Gun Gauss Rifle Ballistic Cannon Antimatter Cannon Launcher Subdweller Shrapnel Launcher Build | -11 -10 -10 -7 -5 ------- Run | Yrd Mat Sub Scr Fac Slots Evolved 10 | . . . . 10 Power 1 | . . . . 1 Propulsion 2 | . . . . 2 Utility 6 | . . . . 6 Weapon 1 | . . . . 1 Parts Attached 35 | . 1 10 9 15 Power 6 | . . 2 2 2 Engine 6 | . . 2 2 2 Core . | . . . . . Reactor . | . . . . . Propulsion 10 | . . 5 1 4 Treads . | . . . . . Leg 7 | . . 2 1 4 Wheel 3 | . . 3 . . Hover . | . . . . . Flight . | . . . . . Utility 11 | . 1 1 2 7 Device 6 | . 1 1 1 3 Storage . | . . . . . Processor 3 | . . . 1 2 Hackware 2 | . . . . 2 Protection . | . . . . . Artifact . | . . . . . Weapon 8 | . . 2 4 2 Energy Gun . | . . . . . Energy Cannon 1 | . . 1 . . Ballistic Gun 4 | . . 1 3 . Ballistic Cannon 2 | . . . . 2 Launcher 1 | . . . 1 . Special Weapon . | . . . . . Impact Weapon . | . . . . . Slashing Weapon . | . . . . . Piercing Weapon . | . . . . . Special Melee Weapon . | . . . . . Unidentified Prototypes 3 | . . 1 . 2 Parts Lost 12 | . . . . 12 Power 1 | . . . . 1 Propulsion 5 | . . . . 5 Utility 3 | . . . . 3 Weapon 3 | . . . . 3 Highest Loss Streak 10 | . . . . 10 To Critical Strikes . | . . . . . Average Backups 6 | . 6 7 7 5 Power . | . 1 1 . . Propulsion 1 | . 2 1 . . Utility 1 | . . . 2 2 Weapon 3 | . 2 4 3 2 Tool/Special . | . . . . . Unused Backups 11 | . . 7 3 1 Power 2 | . . 2 . . Propulsion . | . . . . . Utility 2 | . . . 1 1 Weapon 7 | . . 5 2 . Tool/Special . | . . . . . Average Slot Usage (%) 91 | . 89 99 94 74 Engine 13 | . 14 14 14 10 Leg 21 | . 28 14 24 16 Wheel 4 | . . 12 3 . Device 10 | . 3 14 9 13 Storage 12 | . 14 14 14 5 Processor 3 | . . . 4 5 Energy Gun 2 | . 14 3 . . Energy Cannon 9 | . . 10 14 . Ballistic Gun 6 | . 14 14 3 5 Ballistic Cannon 1 | . . . . 9 Launcher 2 | . . . 5 . Peak Build Rating 74 | . 7 16 28 74 Average Rating 23 | . 6 13 19 55 On Entrance 12 | 6 6 7 15 28 Avg Prop Armor Cover (%) 4 | . . 4 . 4 Naked Turns . | . . . . . Heaviest Build 48 | 11 12 21 30 48 Greatest Support 75 | 20 20 40 40 75 Greatest Overweight (x) 1 | . . 1 1 1 Average Overweight (x) . | . . . . . Largest Inventory Capacity 8 | . 8 8 8 8 Average Capacity 8 | . 8 8 8 8 Most Carried 8 | . 8 8 8 8 Average Carried 7 | . 6 7 7 5 Final Capacity 8 | 8 8 8 8 8 Final Carried 8 | 6 6 8 8 4 Class Distribution -------------------- 51% | Mutant 27% | Derelict-Mutant 18% | Derelict-Gunner Dominant Class ---------------- Mutant | -10/Materials Mutant | -10/Subcaves Derelict-Mutant | -7/Scraptown Derelict-Gunner | -5/Factory Resources | -11 -10 -10 -7 -5 ----------- Run | Yrd Mat Sub Scr Fac Matter Collected 1323 | 200 25 130 110 858 Remotely . | . . . . . Salvage Created 1143 | . 81 68 . 994 Parts 57 | . 6 4 . 47 Haulers Intercepted 2 | . 1 . . 1 Recyclers Shooed . | . . . . . Parts Field Recycled . | . . . . . Retrieved Matter . | . . . . . Parts Self-Destructed 22 | . . 22 . . Prevented . | . . . . . Parts Restored . | . . . . . Kills | -11 -10 -10 -7 -5 ------- Run | Yrd Mat Sub Scr Fac Combat Hostiles Destroyed 18 | . 1 1 . 16 Guns 4 | . 1 1 . 2 Cannons 14 | . . . . 14 Classes Destroyed 10 | . 2 1 . 7 Worker 1 | . . . . 1 Builder 4 | . . . . 4 Hauler 2 | . 1 . . 1 Operator 1 | . . . . 1 Turret 1 | . . 1 . . Grunt 14 | . 1 1 . 12 Brawler 1 | . . . . 1 Specialist 2 | . . . . 2 Hunter 1 | . . . . 1 Subdweller 7 | . . . . 7 Best Kill Streak 8 | . 1 1 . 8 Combat Bots Only 5 | . 1 1 . 5 Max Kills in Single Turn 2 | . 1 1 . 2 Gunslinging . | . . . . . Exploded . | . . . . . Melee . | . . . . . Uniques/NPCs Destroyed . | . . . . . Combat | -11 -10 -10 -7 -5 -------- Run | Yrd Mat Sub Scr Fac Hostile Shots Fired 176 | . 6 29 . 141 Missed 53 | . 4 12 . 37 Hits 123 | . 2 17 . 104 Melee 3 | . . . . 3 Projectile 120 | . 2 17 . 101 Critical Strikes 6 | . . . . 6 Part Disruptions 1 | . . . . 1 Damage Taken 1962 | . 22 136 . 1804 Core 252 | . . 15 . 237 Absorbed by Shields . | . . . . . Core Remaining (%) 97 | 100 . . 94 . Volleys Fired 97 | . 7 10 1 79 Largest 3 | . 2 2 1 3 Hottest 113 | . 60 105 80 113 Shots Fired 233 | . 14 20 1 198 Gun 90 | . 14 14 . 62 Cannon 143 | . . 6 1 136 Launcher . | . . . . . Special . | . . . . . Kinetic 194 | . 7 10 . 177 Thermal 39 | . 7 10 1 21 Explosive . | . . . . . Electromagnetic . | . . . . . Robot Hit Streak 7 | . 3 7 . 7 Robot Miss Streak 4 | . 2 1 . 4 Penetration Max 1 | . . . . 1 Secondary Targets . | . . . . . Shots Hit Robots 128 | . 6 11 . 111 Core Hits 60 | . 3 5 . 52 Critical Kills 6 | . . . . 6 Critical Parts Destroyed 3 | . . . . 3 Critical Strikes 10 | . . . . 10 Destroy 10 | . . . . 10 Melee Attacks . | . . . . . Impact . | . . . . . Slashing . | . . . . . Piercing . | . . . . . Sneak Attacks . | . . . . . Combat Hostiles . | . . . . . Follow-up Attacks . | . . . . . Damage Inflicted 3996 | . 82 188 . 3726 Guns 994 | . 77 108 . 809 Cannons 2984 | . . 80 . 2904 Explosions . | . . . . . Melee . | . . . . . Ramming 18 | . 5 . . 13 Kinetic 3223 | . 29 85 . 3109 Thermal 755 | . 48 103 . 604 Explosive . | . . . . . Electromagnetic . | . . . . . Impact . | . . . . . Slashing . | . . . . . Piercing . | . . . . . Highest Corruption 17 | . . . . 17 Average Corruption 5 | . . . . 5 Corruption Purged . | . . . . . Corruption Blocked . | . . . . . Effects 1 | . . . . 1 Message Errors 1 | . . . . 1 Overload Shots . | . . . . . Overflow Damage 22 | . . . . 22 Projectiles 22 | . . . . 22 Explosions . | . . . . . Melee . | . . . . . Knockbacks 24 | . . . . 24 Impact . | . . . . . Kinetic 22 | . . . . 22 Secondary 2 | . . . . 2 Self-Inflicted Damage . | . . . . . Shots . | . . . . . Rammed . | . . . . . Targets Rammed 4 | . 3 . . 1 Kicked 4 | . 3 . . 1 Crushed . | . . . . . Highest Temperature 214 | . 12 42 42 214 Average Temperature 78 | . 9 23 22 97 Received Heat Transfer 531 | . 12 87 . 432 Siege Activations . | . . . . . Martial Activations . | . . . . . Shielding Activations . | . . . . . Robots Disrupted . | . . . . . Combat Hostiles . | . . . . . Robots Corrupted . | . . . . . Combat Hostiles . | . . . . . Parts Fried . | . . . . . Impact Corruptions . | . . . . . Robots Melted . | . . . . . Combat Hostiles . | . . . . . Parts Melted 2 | . . . . 2 Heat Transferred 1038 | . 100 161 . 777 Parts Sabotaged . | . . . . . Parts Stolen . | . . . . . Parts Stripped . | . . . . . Power Chain Reactions . | . . . . . Alert | -11 -10 -10 -7 -5 ------- Run | Yrd Mat Sub Scr Fac Maximum Alert Level 1 | . . . . 1 Low Security (%) 86 | . 100 . . 80 Level 1 13 | . . . . 19 Level 2 . | . . . . . Level 3 . | . . . . . Level 4 . | . . . . . Level 5 . | . . . . . High Security . | . . . . . Max Security . | . . . . . Peak Influence 280 | . 36 . . 280 Initial . | . . . . . Average 64 | . 8 . . 90 Influence Increases 784 | . 53 148 . 583 Destroy 0b10 Robot/C 420 | . 20 80 . 320 Destroy 0b10 Robot/NC 40 | . 5 . . 35 Destroy Leader 74 | . 12 10 . 52 Allied During Kill 14 | . . 13 . 1 Successful Hack 16 | . 16 . . . Disable Machine 75 | . . . . 75 Destroy Structure 70 | . . . . 70 Lose Combat Pursuer 75 | . . 45 . 30 Influence Decreases 552 | . 53 148 . 351 Time Decay 412 | . 53 148 . 211 Lost Part 120 | . . . . 120 Lost Ally 20 | . . . . 20 Squads Dispatched 8 | . 2 . . 6 Investigation 2 | . 1 . . 1 Extermination 1 | . . . . 1 Reinforcement 5 | . 1 . . 4 Assault . | . . . . . Garrison . | . . . . . Intercept . | . . . . . Searches Triggered . | . . . . . Construction Impeded 2 | . . . . 2 Haulers Reinforced . | . . . . . Active Scanning Responses . | . . . . . Cargo Convoy Interrupts . | . . . . . Stealth | -11 -10 -10 -7 -5 --------- Run | Yrd Mat Sub Scr Fac Distress Signals 2 | . 1 . . 1 Communications Jammed . | . . . . . Distress Signals . | . . . . . Times Spotted 30 | . 2 7 . 21 Peak Tracking Total 5 | . 1 2 . 5 Tactical Retreats 3 | . . 1 . 2 Traps | -11 -10 -10 -7 -5 ------- Run | Yrd Mat Sub Scr Fac Traps Triggered . | . . . . . Indirectly . | . . . . . Trap Hack Attempts . | . . . . . Triggered . | . . . . . Disarmed . | . . . . . Reprogrammed . | . . . . . Reused . | . . . . . Traps Extracted . | . . . . . Installed 1 | . . . 1 . Triggered . | . . . . . Machines | -11 -10 -10 -7 -5 ---------- Run | Yrd Mat Sub Scr Fac Machines Disabled 7 | . . 2 . 5 Max in Single Turn 1 | . . 1 . 1 Machines Repaired . | . . . . . Machines Dismantled . | . . . . . Machines Sabotaged . | . . . . . Overloaded Fab Kills . | . . . . . Hacking | -11 -10 -10 -7 -5 --------- Run | Yrd Mat Sub Scr Fac Machines Accessed 12 | . 2 1 7 2 Terminals 3 | . 2 . . 1 Fabricators . | . . . . . Repair Stations . | . . . . . Recycling Units 1 | . . . . 1 Scanalyzers . | . . . . . Garrison Access . | . . . . . Total Hacks 58 | . 8 4 42 4 Successful 52 | . 4 4 42 2 Failed 6 | . 4 . . 2 Catastrophic 1 | . 1 . . . Database Lockouts . | . . . . . Manual 5 | . 1 . . 4 Terminals 11 | . 8 . . 3 Fabricators . | . . . . . Repair Stations . | . . . . . Recycling Units 1 | . . . . 1 Scanalyzers . | . . . . . Garrison Access . | . . . . . Terminal Hacks 50 | . 4 4 42 . Record 40 | . . 4 36 . Robot Analysis 6 | . . . 6 . Terminal Index 1 | . 1 . . . Recall Investigation 1 | . 1 . . . Hauler Manifests 1 | . 1 . . . Registered Prototypes 1 | . 1 . . . Fabricator Hacks . | . . . . . Repair Station Hacks . | . . . . . Recycling Unit Hacks . | . . . . . Scanalyzer . | . . . . . Garrison Access Hacks . | . . . . . Unauthorized Hacks 2 | . . . . 2 Terminals 1 | . . . . 1 Botnet 1 | . . . . 1 Fabricators . | . . . . . Repair Stations . | . . . . . Recycling Units 1 | . . . . 1 Fedlink 1 | . . . . 1 Scanalyzers . | . . . . . Garrison Access . | . . . . . Data Cores Recovered 1 | . . . . 1 Used . | . . . . . Hacking Detections 3 | . 2 . . 1 Full Trace Events . | . . . . . Feedback Events . | . . . . . Feedback Blocked . | . . . . . Robot Schematics Acquired . | . . . . . Robots Built . | . . . . . Authchips . | . . . . . Time . | . . . . . Total Robot Build Rating . | . . . . . Part Schematics Acquired . | . . . . . Parts Built . | . . . . . Authchips . | . . . . . Time . | . . . . . Total Part Build Rating . | . . . . . Part Studies Acquired . | . . . . . Parts Repaired . | . . . . . Time . | . . . . . Parts Recycled . | . . . . . Recycled Matter . | . . . . . Retrieved Matter . | . . . . . Retrieved Components . | . . . . . Parts Scanalyzed . | . . . . . Part Schematics Acquired . | . . . . . Parts Damaged . | . . . . . Bothacking | -11 -10 -10 -7 -5 ------------ Run | Yrd Mat Sub Scr Fac Used RIF Installer . | . . . . . Robots Hacked . | . . . . . Non-combat . | . . . . . Combat . | . . . . . Robot Hacks Applied . | . . . . . Relay Couplers Released . | . . . . . Fabnet Peak Effective % . | . . . . . Robots Rewired . | . . . . . Allies Hacked . | . . . . . Hacks Repelled . | . . . . . Allies | -11 -10 -10 -7 -5 -------- Run | Yrd Mat Sub Scr Fac Total Allies 7 | . . 7 . . Largest Group 7 | . . 7 7 7 Highest-Rated Group 133 | . . 133 133 133 Highest-Rated Ally 19 | . . 19 19 19 Total Orders . | . . . . . Ally Attacks 36 | . . 36 . . Total Damage 586 | . . 586 . . Kills 4 | . . 4 . . Allies Corrupted . | . . . . . Allies Melted . | . . . . . Intel | -11 -10 -10 -7 -5 ------- Run | Yrd Mat Sub Scr Fac Active Infowar (turns) 724 | . 80 139 505 . Structural 219 | . 80 139 . . Machine Analysis 505 | . . . 505 . Robot Analysis Total 6 | . . . 6 . Derelict Logs Recovered 4 | . . . 4 . Drone Launches 3 | . . . . 3 Drone Recoveries 1 | . . . . 1 Exploration | -11 -10 -10 -7 -5 ------------- Run | Yrd Mat Sub Scr Fac Turns Passed 3163 | . 288 615 1662 598 Spaces Moved 2061 | 1 212 439 1215 194 Core . | . . . . . Treads . | . . . . . Legs 1661 | 1 212 206 1048 194 Wheels 400 | . . 233 167 . Hover . | . . . . . Flight . | . . . . . Fastest Speed 110 | 120 120 110 110 126 Average Speed 130 | 120 120 119 132 152 Slowest Speed 210 | 120 120 210 140 210 Overloaded Moves . | . . . . . Propulsion Burnouts . | . . . . . Robots Hopped . | . . . . . Potential Cave-ins . | . . . . . Cave-ins Triggered . | . . . . . Exploration Rate (%) 32 | 2 48 47 60 3 Regions Visited 4 Branch Regions 2 Pre-discovered Areas 3 | . . 2 1 . Known Exits Taken . | . . . . . Unknown Exits Taken 4 | 1 1 1 1 . Scrap Searched 9 | . . . 9 . Spaces Dug . | . . . . . Terrain Destroyed 39 | . . . . 39 Melee . | . . . . . Projectile 39 | . . . . 39 AOE . | . . . . . Terrain Rammed . | . . . . . Walls Destroyed . | . . . . . Machines Disabled . | . . . . . Actions | -11 -10 -10 -7 -5 --------- Run | Yrd Mat Sub Scr Fac Total 2358 | . 232 514 1274 338 Wait 99 | . 5 30 26 38 Move 2057 | . 211 438 1214 194 Hop . | . . . . . Pick Up 27 | . 3 11 7 6 Fast Attach 11 | . . 3 3 5 Attach 13 | . 1 1 3 8 Detach 2 | . . . 2 . Swap 17 | . . 6 7 4 Drop 29 | . 2 14 10 3 Fire 97 | . 7 10 1 79 Melee . | . . . . . Ram . | . . . . . Kick 4 | . 3 . . 1 Crush . | . . . . . Escape Stasis . | . . . . . Rewire 1 | . . 1 . . Trap 1 | . . . 1 . Miscellaneous . | . . . . . Route ------- -11/Scrapyard -10/Materials (discovered 2 exits: [*Min] / *Sub) -10/Subcaves (discovered 4 exits: [*Mat x2] / [*Rec] / *Scr) -7/Scraptown -5/Factory (discovered 1 exit: [Fac]) History --------- Turn | Location | Event 1 | -11/Scrapyard | Discovered new exit (range 0) 1 | -11/Scrapyard | Entered Materials 2 | -10/Materials | Met a group of wandering Federalists 136 | -10/Materials | Discovered new exit (range 14) 270 | -10/Materials | Discovered new exit (range 9) 289 | -10/Materials | Entered Subcaves 290 | -10/Subcaves | Continued accompanying wandering Federalists (4) 290 | -10/Subcaves | Approached by a straggling Scientist 306 | -10/Subcaves | Build established: Mutant 318 | -10/Subcaves | Discovered new exit (range 11) 354 | -10/Subcaves | Shifting Twisted Machinery released Sub. Machine Gun 356 | -10/Subcaves | Shifting Twisted Machinery released Battle Cannon 422 | -10/Subcaves | Visited triangular shrine 429 | -10/Subcaves | Found Prototype Device 429 | -10/Subcaves | Identified V3-11A's Pendant 434 | -10/Subcaves | Befriended Subdweller 462 | -10/Subcaves | Discovered new exit (range 16) 510 | -10/Subcaves | Learned location of Zion (-6) 510 | -10/Subcaves | Met a Zionite searching for "candidates" 549 | -10/Subcaves | Befriended Subdweller 589 | -10/Subcaves | Befriended Subdweller 589 | -10/Subcaves | Befriended Subdweller 768 | -10/Subcaves | Discovered new exit (range 14) 795 | -10/Subcaves | Visited Clippyterm 799 | -10/Subcaves | Learned location of Extension (-6) 824 | -10/Subcaves | Befriended Subdweller 824 | -10/Subcaves | Befriended Subdweller 844 | -10/Subcaves | Befriended Subdweller 884 | -10/Subcaves | Scientist uncovered a shortcut to Scraptown 904 | -10/Subcaves | Entered Scraptown 904 | -7/Scraptown | Accompanied by 7 allies 1042 | -7/Scraptown | Visited Bundlers 1068 | -7/Scraptown | Visited Cyclists 1109 | -7/Scraptown | Scanned Subdweller tech in exchange for log data 1112 | -7/Scraptown | Learned Research trap positions 1113 | -7/Scraptown | Learned Factory trap positions 1115 | -7/Scraptown | Learned location of Armory (-4) 1246 | -7/Scraptown | Visited Symbiants 1269 | -7/Scraptown | Visited Awakened 1312 | -7/Scraptown | Visited UFD Registry 1313 | -7/Scraptown | Registered with UFD as "Gunhead" 1474 | -7/Scraptown | Entered Cyclist Reading Room 1562 | -7/Scraptown | Visited Scrap Suit Storage 1580 | -7/Scraptown | Visited Science Guys 1589 | -7/Scraptown | Warned about trapping Scraptown 1636 | -7/Scraptown | Visited Abandonware Association 1653 | -7/Scraptown | Learned abandonware demo "KABOOM.EXE" 1653 | -7/Scraptown | Learned abandonware demo "MELTYB.EXE" 1655 | -7/Scraptown | Learned abandonware demo "OVRCLOCK.EXE" 1697 | -7/Scraptown | Visited DA-N13 Charitable Foundation 1711 | -7/Scraptown | Found DCF Scrap (29 items) 1794 | -7/Scraptown | Visited Cartography Club 1862 | -7/Scraptown | Found Surveybot 17 Chip 1915 | -7/Scraptown | Visited Scrapoid Pod Storage 1936 | -7/Scraptown | Visited Analyses Database 1994 | -7/Scraptown | Visited Chapter 10 2005 | -7/Scraptown | Build established: Derelict-Mutant 2360 | -7/Scraptown | Visited LU-1G1's Boring Crew 2471 | -7/Scraptown | Met Optimus 2471 | -7/Scraptown | Accepted into 0bPrime 2555 | -7/Scraptown | Discovered new exit (range 3) 2566 | -7/Scraptown | Entered Factory 2566 | -5/Factory | Accompanied by 7 allies 2566 | -5/Factory | Evolved 10 slots: Power x1, Propulsion x2, Utility x6, Weapon x1 2567 | -5/Factory | Loaded intel: 120 trap records 2725 | -5/Factory | Murdered 5 allies 2777 | -5/Factory | Loaded intel: 8 recycling unit locations 2865 | -5/Factory | Build established: Derelict-Gunner 3063 | -5/Factory | Discovered new exit (range 17) 3156 | -5/Factory | System corruption reached 10% 3164 | -5/Factory | Self-destructed Last Messages --------------- 03151_ K-01 Serf collects debris. 03152_ ALERT: Suspicious intruders detected, dispatching Specialist reinforcements to area. 03154_ Mak. Leg destroyed. 03154_ Carbon-fiber Leg destroyed. 03155_ Hacking Suite destroyed. 03155_ Adv. Heat Sink destroyed. 03155_ Gauss Rifle destroyed. 03155_ System corrupted by crushing effect (+4). 03155_ System corrupted by crushing effect (+3). 03155_ System corrupted by crushing effect (+2). 03155_ Knocked back. 03158_ J>G=N TO9UVRMMI VI60#WV&S Q 03158_ K-01 Serf collects debris. 03159_ Armor Integrity Analyzer destroyed. 03159_ System corrupted by crushing effect (+5). 03160_ Mak. Leg destroyed. 03162_ Imp. Treads melted. 03162_ B-60 Warrior destroyed. [Achievement: I Think I Know What's Going On] Map ----- +----------------------------------------------------+ | #?????????????????????????????????????????????? | | #?????????????????????????????????????????????? | | #######??????????????????????????????????????????? | | ??????????????????????????????????????????? | | ???????????????????????????????????????????? | | " """""??????????????????????????????????????????? | | " """"""?????????????????????????????????????????? | | " """""" #???????????????????????????????????????? | | " """""" #?????????#??? ?????????????????????????? | | #?????? ? # ? ?? ?????????????????????? | | #???"?"?? ?#??##?###????????????????????? | | | #?????""" #?###?#?#? ?????????????????? | | # """ """ #### ##### ?#???????????????? | | ########## ########?# ? ##???###?????????? | | % ######## ### ## ###?##???????????? | | #################### ?#? ? ???????????? | | ######## + ? H??/?????????? | | * ######## # !! ? #?# ??????? ?????? | | ######## # %= #########?##??????????? | | ######## ###%###############? ???????? | | ######## ###=#### #####?#??? ?? ?????? | | ######## ###%### ## #####???? ? ?????? | | ######## ###%####""#######??? ???????? | | ##########+#############%##! #### ????????? | | ########## ############p*## #### ???????? | | | #### ######## *=*%!@# ! ###????? ????? | | #### ######## !=!*|+/ ####?#???????? | | """ #### ######## !!![#% [ ##?##????????? | | "Y% #### ########p [*=*# ####?????????? | | "" *%#### % # "" "" ####?????????? | | ![ [#### ############# # """"" ####?????????? | | ########## ############# #/###########?#????????? | | #############^ ^^# ## ????????? | | ########################^^^ ##" ""?????????? | | ##### ####################### ###"??"?????????? | | ##### ####################### ####"??"?????????? | | ##### ######################## ###? ??????????? | | ####################################"????????????? | | ##################################??"????????????? | | ###### #################?????????????? | | ###### """ """ #################?????????????? | | ###### """ """ ###############???????????????? | | ###### """ """ "" ### ? ???????????????? | | #? # S"" ### ?????????????????? | | # # "" # # ? ???????????????????? | | # ?##+############## ??"??????????????????????? | | #^ ^^ ? ####### "????????????????????????? | | # ^ ^^# ??###?????????????????????????????? | | # ?# ??#????????????????????????????????? | | ? ? + ??"????????????????????????????????????? | +----------------------------------------------------+ Best States ------------- Heat Dissipation 78 Energy Generation 29 Energy Capacity 570 Matter Stores 300 Matter Capacity 300 Sight Range 16 Terrain Scan Density 1210 Evasion (%) 55 Armor Integrity Analysis 30 Matter Filtering 30 Offensive Hacking 20 Item Schematics ----------------- None Robot Schematics ------------------ None Fabricated ------------ Nothing Repaired ---------- Nothing Studied --------- None Alien Tech Used ----------------- None Achievements -------------- Bob, First Of His Name Do Not Disturb I Think I Know What's Going On SUBSUB Strength In Numbers Challenges ------------ None Game ------ Seed ServoFireShearcannon Manual? 0 Play Time 00:40:56 Cumulative 146.4 hours Start 2025.12.28 @ 10:48:34 End 2025.12.28 @ 13:46:39 Sessions 1 Manual Loads 0 Difficulty Rogue Special Mode None Game No. 175 Rogue 160 Adventurer 15 Explorer 0 Win Type - Total 7 Types 3/0/2/1/0/0/1/0/0/0 Lore% 51 Gallery% 68 Achievement% 47 Wizard Run 0 Options --------- Layout 0 ASCII 0 Keyboard 0 Movement Mouse Keybinds 0 Fullscreen 2 Font 36/Smallcaps Map View 76x50 Zoom Use 0% Tactical HUD 1 Map Filters NONE Filters NONE Steam 1 RUN: 499d695d-929d-4ce1-94ad-e29ad0bd2bb0